Cogmind - Beta 12 @@@ ROGUE MODE // 2023.04.01 @ 21:50:21 Player: Rohain Result: Destroyed by G-67 Veteran with Plasma Rifle Performance ------------- Evolutions (7) 3500 Regions Visited (17) 3400 Robots Destroyed (155) 775 Value Destroyed (6340) 6340 Prototype IDs (45) 900 Alien Tech Used (2) 400 Bonus (1329) 1329 TOTAL SCORE: 16644 Bonus ------- High Alert Combat Kills 133 Follower Combat Kills 359 Entered DSFs 500 Aligned with FarCom 300 Met Zhirov 300 Friendly Fire -263 Cogmind --------- Core Integrity 0/1300 Matter 273/300 Energy 86/100 System Corruption 29% Temperature Cool (12) Movement Core (200) Ox3 Location -3/Research Parts ------- > --- POWER (2) -------- (None) > --- PROPULSION (5) --- (None) > --- UTILITY (10) ----- Advanced Heat Sink Medium Storage Unit Advanced Visual Processing Unit 0b10 Decoder Chip [Generic] Advanced Targeting Computer > --- WEAPON (4) ------- (None) > --- INVENTORY (10) --- Light Fission Core Light Neutrino Core Flexi-carbon Leg Myomer Leg Advanced Energy Well (500) Peak State ------------ > --- POWER ------------ Particle Reactor Particle Reactor > --- PROPULSION ------- Myomer Leg Myomer Leg Advanced Myomer Leg Advanced Myomer Leg Advanced Myomer Leg > --- UTILITY ---------- Experimental Heat Sink Large Storage Unit Advanced Visual Processing Unit Advanced Signal Interpreter 0b10 Decoder Chip [Generic] Advanced Targeting Computer Advanced Targeting Computer Advanced Targeting Computer Advanced Targeting Computer Recoil Nullifier > --- WEAPON ----------- Quantum Rifle Railgun Railgun Enhanced Gauss Cannon > --- INVENTORY -------- Light Fission Core Neutrino Core Light Neutrino Core Biometal Medium Treads Biometal Medium Treads Biometal Medium Treads Carbon-fiber Leg Flexi-carbon Leg Flexi-carbon Leg Flexi-carbon Leg Myomer Leg Advanced Heat Sink Experimental Heat Sink Advanced Energy Well Encrypted Comm Array [Rating: 130] Favorites ----------- Power Neutrino Core Engine Ion Engine Power Core Neutrino Core Reactor Particle Reactor Propulsion Flexi-carbon Leg Treads Improved Treads Leg Flexi-carbon Leg Utility Advanced Targeting Computer Device Experimental Heat Sink Storage Large Storage Unit Processor Advanced Targeting Computer Protection Improved Light Armor Plating Weapon XL Autogun Subcomponent Energy Gun Small Laser Energy Cannon Disruptor Cannon Ballistic Gun XL Autogun Subcomponent Ballistic Cannon Enhanced Gauss Cannon Launcher Grenade Launcher Build | -11 -10 -10 -9 -9 -9 -8 -8 -7 -6 -6 -5 -4 -4 -4 -4 -3 -3 ------- Run | Jun Mat Min Mat Min Exi Min Mat Fac Fac DSF Fac Fac Upp Upp Zhi Pro Res Slots Evolved 14 | . . . 2 . . . 2 2 2 . 2 2 . . . . 2 Power 1 | . . . . . . . . . . . 1 . . . . . . Propulsion 3 | . . . 2 . . . . . 1 . . . . . . . . Utility 8 | . . . . . . . . 2 1 . 1 2 . . . . 2 Weapon 2 | . . . . . . . 2 . . . . . . . . . . Parts Attached 171 | 6 1 4 26 2 1 2 1 7 4 4 16 3 4 6 8 9 67 Power 26 | 1 . . 1 . . 1 . 2 1 1 6 . . . 2 . 11 Engine 3 | 1 . . 1 . . . . . . 1 . . . . . . . Core 12 | . . . . . . 1 . 2 1 . 6 . . . 1 . 1 Reactor 11 | . . . . . . . . . . . . . . . 1 . 10 Propulsion 59 | 2 . . 10 2 1 1 . 3 2 3 . . 1 6 3 3 22 Treads 7 | . . . 1 . . . . . . . . . . . . . 6 Leg 52 | 2 . . 9 2 1 1 . 3 2 3 . . 1 6 3 3 16 Wheel . | . . . . . . . . . . . . . . . . . . Hover . | . . . . . . . . . . . . . . . . . . Flight . | . . . . . . . . . . . . . . . . . . Utility 35 | 1 1 1 2 . . . . 2 1 . 5 3 3 . 3 2 11 Device 19 | . 1 . . . . . . 1 . . 3 1 3 . 2 . 8 Storage 5 | 1 . 1 1 . . . . . . . . . . . 1 . 1 Processor 8 | . . . 1 . . . . 1 1 . . 2 . . . 2 1 Hackware . | . . . . . . . . . . . . . . . . . . Protection 3 | . . . . . . . . . . . 2 . . . . . 1 Artifact . | . . . . . . . . . . . . . . . . . . Weapon 51 | 2 . 3 13 . . . 1 . . . 5 . . . . 4 23 Energy Gun 15 | 1 . 1 4 . . . . . . . . . . . . . 9 Energy Cannon 1 | . . . . . . . . . . . . . . . . . 1 Ballistic Gun 30 | 1 . 1 7 . . . 1 . . . 5 . . . . 3 12 Ballistic Cannon 1 | . . . . . . . . . . . . . . . . 1 . Launcher 4 | . . 1 2 . . . . . . . . . . . . . 1 Special Weapon . | . . . . . . . . . . . . . . . . . . Impact Weapon . | . . . . . . . . . . . . . . . . . . Slashing Weapon . | . . . . . . . . . . . . . . . . . . Piercing Weapon . | . . . . . . . . . . . . . . . . . . Special Melee Weapon . | . . . . . . . . . . . . . . . . . . Unidentified Prototypes 15 | . . . 1 . . . . 1 . . 5 . . . 6 . 2 Corrupted Parts 4 | . . . . . . . . . . . . . . . . . 4 System Corruption 23 | . . . . . . . . . . . . . . . . . 23 Parts Lost 78 | . . . 3 1 . 1 . . . 1 . . 2 . . 10 60 Power 10 | . . . . . . . . . . . . . . . . 1 9 Propulsion 26 | . . . 1 1 . 1 . . . 1 . . 1 . . 2 19 Utility 13 | . . . . . . . . . . . . . 1 . . . 12 Weapon 29 | . . . 2 . . . . . . . . . . . . 7 20 Highest Loss Streak 17 | . . . 1 1 . 1 . . . 1 . . 1 . . 7 17 To Critical Strikes 3 | . . . . . . . . . . . . . . . . 1 2 Average Slot Usage (%) 91 | . 90 100 99 99 100 99 72 76 78 80 91 100 98 99 94 95 83 Engine 3 | . 14 14 11 11 11 2 . . . 3 1 . . . . . . Core 3 | . . . . . . 8 9 7 6 2 9 10 10 10 7 5 1 Reactor 1 | . . . . . . . . . . . . . . . 2 4 6 Treads 2 | . . . 5 11 5 . . . . . . . . . . . 3 Leg 27 | . 28 28 38 32 38 43 36 30 33 33 29 26 24 25 26 25 15 Device 6 | . 4 14 7 . . . . 7 6 6 4 10 10 14 10 6 7 Storage 7 | . 14 14 11 11 11 11 9 7 6 6 5 5 5 5 5 5 3 Processor 17 | . . . 3 11 11 11 9 15 18 20 17 21 25 21 21 29 30 Energy Gun 2 | . 14 12 4 . . . . . . . . . . . . . 2 Ballistic Gun 14 | . 14 14 16 22 22 22 9 7 6 6 14 21 21 21 21 16 8 Naked Turns . | . . . . . . . . . . . . . . . . . . Heaviest Build 87 | 12 13 19 31 31 31 31 40 41 43 49 72 62 60 60 59 59 87 Greatest Support 140 | 20 20 20 40 41 51 48 48 66 82 94 94 94 96 101 131 140 140 Greatest Overweight (x) 3 | . . . . . . . . . . . . . . . . . 3 Average Overweight (x) . | . . . . . . . . . . . . . . . . . . Largest Inventory Capacity 15 | 8 8 10 15 15 15 15 15 15 15 15 15 15 15 15 15 15 15 Average Capacity 13 | 7 8 8 10 15 15 15 15 15 15 15 15 15 15 15 15 15 13 Most Carried 15 | 6 8 9 15 15 15 15 15 15 15 15 15 14 15 15 15 15 15 Average Carried 12 | 2 6 8 9 14 14 14 13 13 14 14 14 13 14 14 14 14 9 Final Capacity 15 | 8 8 10 15 15 15 15 15 15 15 15 15 15 15 15 15 15 10 Final Carried 15 | 6 8 9 15 15 15 15 14 15 15 14 15 14 15 14 14 13 5 Class Distribution -------------------- 40% | Mutant 30% | Gunner 20% | Scavenger-Gunner 4% | Scavenger-Mutant 3% | Skirmisher Dominant Class ---------------- Mutant | -10/Materials Mutant | -10/Mines Mutant | -9/Materials Mutant | -9/Mines Mutant | -9/Exiles Mutant | -8/Mines Skirmisher | -8/Materials Gunner | -7/Factory Gunner | -6/Factory Gunner | -6/DSF Gunner | -5/Factory Gunner | -4/Factory Gunner | -4/Upper Caves Scavenger-Gunner | -4/Upper Caves Gunner | -4/Zhirov Gunner | -3/Proximity Caves Scavenger-Gunner | -3/Research Resources | -11 -10 -10 -9 -9 -9 -8 -8 -7 -6 -6 -5 -4 -4 -4 -4 -3 -3 ----------- Run | Jun Mat Min Mat Min Exi Min Mat Fac Fac DSF Fac Fac Upp Upp Zhi Pro Res Matter Collected 5470 | 155 133 46 705 115 . 39 210 318 . 462 191 . 425 373 148 454 1696 Remotely . | . . . . . . . . . . . . . . . . . . Salvage Created 7769 | . 154 5 955 75 . 147 318 328 . 475 371 . 457 349 314 771 3050 Parts 387 | . 18 3 70 10 . 3 25 17 . 32 21 . 26 18 7 19 118 Haulers Intercepted 5 | . . . 1 . . . . 2 . . . . . . . . 2 Recyclers Shooed 5 | . . . 1 . . . . . . . 3 . . . . . 1 Parts Field Recycled . | . . . . . . . . . . . . . . . . . . Retrieved Matter . | . . . . . . . . . . . . . . . . . . Parts Self-Destructed 52 | . . . . . . . . . . . . . 17 14 5 16 . Prevented 5 | . . . . . . . . . . . . . . 5 . . . Kills | -11 -10 -10 -9 -9 -9 -8 -8 -7 -6 -6 -5 -4 -4 -4 -4 -3 -3 ------- Run | Jun Mat Min Mat Min Exi Min Mat Fac Fac DSF Fac Fac Upp Upp Zhi Pro Res Combat Hostiles Destroyed 135 | . 8 3 31 5 . 3 7 5 . 8 6 . 8 5 . 14 32 Guns 118 | . 8 . 25 5 . 3 7 5 . 8 6 . 8 5 . 9 29 Cannons 6 | . . . . . . . . . . . . . . . . 5 1 AOE 10 | . . 3 6 . . . . . . . . . . . . . 1 Classes Destroyed 16 | . 2 . 3 . . 1 1 2 . 2 . . 2 . . 1 2 Worker 5 | . . . . . . . 2 . . . . . . . . . 3 Builder 1 | . . . . . . . . . . . . . . . . . 1 Hauler 5 | . . . 1 . . . . 2 . . . . . . . . 2 Recycler 5 | . . . . . . . . . . . . . . . . . 5 Drone 2 | . . . . . . . . . . . . . . . . 2 . Watcher 3 | . . . 1 . . . 1 1 . . . . . . . . . Swarmer 40 | . 6 3 13 5 . . 4 2 . . . . . . . . 7 Grunt 46 | . 2 . 10 . . 2 . 1 . 3 4 . 1 2 . 10 11 Brawler 1 | . . . . . . . . 1 . . . . . . . . . Duelist 2 | . . . . . . 1 . . . . 1 . . . . . . Sentry 19 | . . . 8 . . . 3 . . . 1 . 1 . . . 6 Specialist 2 | . . . . . . . . . . 2 . . . . . . . Hunter 15 | . . . . . . . . 1 . 2 . . 2 2 . 2 6 Programmer 4 | . . . . . . . . . . . . . 2 . . . 2 Heavy 1 | . . . . . . . . . . 1 . . . . . . . Master Thief 3 | . . . . . . . . . . . . . 2 1 . . . Thug 1 | . . . . . . . . . . . . . . 1 . . . Best Kill Streak 12 | . 3 3 5 2 . 3 8 3 . 4 3 . 2 4 . 8 12 Combat Bots Only 8 | . 3 3 4 2 . 3 5 3 . 4 3 . 2 4 . 8 5 Max Kills in Single Turn 3 | . 1 2 3 1 . 2 3 2 . 1 1 . 1 1 . 1 2 Gunslinging 1 | . . . 1 . . 1 . . . . . . . . . . 1 Exploded 3 | . . 2 3 . . . . . . . . . . . . . 1 Melee . | . . . . . . . . . . . . . . . . . . Uniques/NPCs Destroyed . | . . . . . . . . . . . . . . . . . . Combat | -11 -10 -10 -9 -9 -9 -8 -8 -7 -6 -6 -5 -4 -4 -4 -4 -3 -3 -------- Run | Jun Mat Min Mat Min Exi Min Mat Fac Fac DSF Fac Fac Upp Upp Zhi Pro Res Damage Taken 13577 | . 227 58 1148 157 . 208 72 342 . 302 288 . 324 425 . 1852 8174 Core 1867 | . 39 25 73 42 . 32 19 30 . 21 42 . 45 51 . 132 1316 Absorbed by Shields . | . . . . . . . . . . . . . . . . . . Redirected to Shielding 103 | . . . . . . . . . . . . . . . . . 103 Core Remaining (%) 86 | 100 . 74 . . . 63 96 95 . 97 95 . . . . 74 . Volleys Fired 422 | . 18 3 85 11 . 4 15 23 . 17 12 . 21 26 4 39 144 Largest 4 | . 2 1 2 2 . 2 1 1 . 1 4 . 4 4 4 4 4 Hottest 287 | . 60 30 88 46 . 46 60 60 . 60 80 . 80 80 80 136 287 Shots Fired 977 | . 36 3 149 22 . 8 15 23 . 17 25 . 84 105 16 100 374 Gun 925 | . 36 . 146 22 . 8 15 23 . 17 25 . 84 105 16 83 345 Cannon 44 | . . . . . . . . . . . . . . . . 17 27 Launcher 8 | . . 3 3 . . . . . . . . . . . . . 2 Special . | . . . . . . . . . . . . . . . . . . Kinetic 833 | . 18 . 121 22 . 8 15 23 . 17 25 . 84 105 16 100 279 Thermal 132 | . 18 . 25 . . . . . . . . . . . . . 89 Explosive 6 | . . 3 3 . . . . . . . . . . . . . . Electromagnetic 6 | . . . . . . . . . . . . . . . . . 6 Robot Hit Streak 56 | . 5 . 12 5 . 5 12 10 . 19 11 . 24 13 10 33 56 Robot Miss Streak 15 | . 4 . 15 3 . 1 6 4 . 2 1 . 4 5 . 2 3 Penetration Max 2 | . . . . . . . . . . . . . . . . . 2 Secondary Targets 22 | . . . 2 1 . 1 . . . . . . 1 3 . 3 11 Max Gunslinging Chain 1 | . . . 1 1 . 1 . . . . . . 1 1 . 1 1 Shots Hit Robots 739 | . 20 . 108 10 . 6 13 23 . 16 23 . 58 70 10 84 298 Core Hits 346 | . 12 5 49 5 . 6 11 13 . 20 17 . 23 18 7 49 111 Critical Kills 9 | . . . . 1 . . . . . . . . . . . . 8 Critical Parts Destroyed 9 | . . . 1 . . . . . . . . . . . . . 8 Critical Strikes 29 | . . . 1 1 . . . . . . . . . . . 4 23 Burn 7 | . . . . . . . . . . . . . . . . . 7 Destroy 18 | . . . 1 1 . . . . . . . . . . . . 16 Blast 4 | . . . . . . . . . . . . . . . . 4 . Melee Attacks . | . . . . . . . . . . . . . . . . . . Impact . | . . . . . . . . . . . . . . . . . . Slashing . | . . . . . . . . . . . . . . . . . . Piercing . | . . . . . . . . . . . . . . . . . . Sneak Attacks . | . . . . . . . . . . . . . . . . . . Combat Hostiles . | . . . . . . . . . . . . . . . . . . Follow-up Attacks . | . . . . . . . . . . . . . . . . . . Damage Inflicted 18563 | . 236 210 2080 157 . 109 752 1192 . 1068 883 . 1435 1678 223 1901 6639 Guns 16800 | . 236 . 1666 157 . 109 752 1192 . 1068 857 . 1435 1678 223 1355 6072 Cannons 916 | . . . . . . . . . . . . . . . . 546 370 Explosions 806 | . . 210 414 . . . . . . . . . . . . . 182 Melee . | . . . . . . . . . . . . . . . . . . Ramming 41 | . . . . . . . . . . . 26 . . . . . 15 Kinetic 16019 | . 86 . 1487 157 . 109 752 1192 . 1068 857 . 1435 1678 223 1901 5074 Thermal 1625 | . 150 . 179 . . . . . . . . . . . . . 1296 Explosive 624 | . . 210 414 . . . . . . . . . . . . . . Electromagnetic 254 | . . . . . . . . . . . . . . . . . 254 Impact . | . . . . . . . . . . . . . . . . . . Slashing . | . . . . . . . . . . . . . . . . . . Piercing . | . . . . . . . . . . . . . . . . . . Highest Corruption 29 | . . . . . . . . . . . . . 1 1 1 1 29 Average Corruption 9 | . . . . . . . . . . . . . 1 1 1 1 25 Corruption Purged . | . . . . . . . . . . . . . . . . . . Corruption Blocked . | . . . . . . . . . . . . . . . . . . Effects 70 | . . . . . . . . . . . . . 2 3 1 3 61 Message Errors 15 | . . . . . . . . . . . . . 1 . . 1 13 Matter Fused 8 | . . . . . . . . . . . . . . 1 . . 7 Heat Flow Errors 3 | . . . . . . . . . . . . . . . . 1 2 Energy Discharges 10 | . . . . . . . . . . . . . 1 . . 1 8 Parts Rejected 5 | . . . . . . . . . . . . . . . . . 5 Data Loss (minor) 6 | . . . . . . . . . . . . . . . 1 . 5 Data Loss (major) 2 | . . . . . . . . . . . . . . 1 . . 1 Misfires 3 | . . . . . . . . . . . . . . 1 . . 2 Alerts 1 | . . . . . . . . . . . . . . . . . 1 Misdirections 5 | . . . . . . . . . . . . . . . . . 5 Weapon Failures 12 | . . . . . . . . . . . . . . . . . 12 Overload Shots . | . . . . . . . . . . . . . . . . . . Overflow Damage 21 | . . . 21 . . . . . . . . . . . . . . Projectiles . | . . . . . . . . . . . . . . . . . . Explosions 21 | . . . 21 . . . . . . . . . . . . . . Melee . | . . . . . . . . . . . . . . . . . . Knockbacks 6 | . . . . . . . . . . . . . . . . 6 . Impact . | . . . . . . . . . . . . . . . . . . Kinetic 5 | . . . . . . . . . . . . . . . . 5 . Secondary 1 | . . . . . . . . . . . . . . . . 1 . Self-Inflicted Damage . | . . . . . . . . . . . . . . . . . . Shots . | . . . . . . . . . . . . . . . . . . Rammed 1 | . . . . . . . . . . . . . . . . . 1 Targets Rammed 5 | . . . . . . . . . . . 1 . . . . . 4 Kicked 4 | . . . . . . . . . . . 1 . . . . . 3 Crushed . | . . . . . . . . . . . . . . . . . . Highest Temperature 443 | . 64 . 45 . . 24 335 329 . 44 443 . 72 38 . 176 252 Average Temperature 70 | . 21 . 11 . . 14 170 131 . 19 108 . 32 17 . 42 64 Received Heat Transfer 2139 | . 36 . 396 . . 81 27 99 . 18 36 . 55 63 . 424 904 Effects 1 | . . . . . . . 1 . . . . . . . . . . Energy Bleed 1 | . . . . . . . 1 . . . . . . . . . . Siege Activations . | . . . . . . . . . . . . . . . . . . Robots Corrupted 1 | . . . . . . . . . . . . . . . . . 1 Combat Hostiles 1 | . . . . . . . . . . . . . . . . . 1 Parts Fried 2 | . . . . . . . . . . . . . . . . . 2 Impact Corruptions . | . . . . . . . . . . . . . . . . . . Robots Melted . | . . . . . . . . . . . . . . . . . . Combat Hostiles . | . . . . . . . . . . . . . . . . . . Parts Melted 8 | . . . . . . . . . . . . . . 1 . . 7 Heat Transferred 3479 | . 350 . 412 . . . . . . . . . . . . . 2717 Parts Sabotaged . | . . . . . . . . . . . . . . . . . . Parts Stolen 6 | . . . . . . . . . . . . . 2 4 . . . Parts Stripped . | . . . . . . . . . . . . . . . . . . Power Chain Reactions . | . . . . . . . . . . . . . . . . . . Missiles Intercepted . | . . . . . . . . . . . . . . . . . . Alert | -11 -10 -10 -9 -9 -9 -8 -8 -7 -6 -6 -5 -4 -4 -4 -4 -3 -3 ------- Run | Jun Mat Min Mat Min Exi Min Mat Fac Fac DSF Fac Fac Upp Upp Zhi Pro Res Peak Influence 667 | . 258 184 667 423 . 75 301 435 119 262 283 40 . . . . 414 Initial 259 | . . 100 71 259 . . 29 136 114 83 137 40 . . . . 94 Average 228 | . 118 142 362 315 . 71 161 289 114 167 187 40 . . . . 202 Maximum Alert Level 2 | . 1 . 2 2 . . 1 2 . 1 1 . . . . . 2 Low Security (%) 45 | 100 76 100 13 . . 100 40 32 100 66 54 100 . . . . 54 Level 1 41 | . 23 . 59 65 . . 59 39 . 33 45 . . . . . 38 Level 2 12 | . . . 26 34 . . . 28 . . . . . . . . 6 Level 3 . | . . . . . . . . . . . . . . . . . . Level 4 . | . . . . . . . . . . . . . . . . . . Level 5 . | . . . . . . . . . . . . . . . . . . High Security . | . . . . . . . . . . . . . . . . . . Max Security . | . . . . . . . . . . . . . . . . . . Sterilizations 1 | . . . . . . . . . . 1 . . . . . . . Squads Dispatched 16 | . 1 . 3 . . . 1 1 . 2 . . . . . . 8 Investigation 2 | . . . 1 . . . . . . . . . . . . . 1 Extermination 2 | . . . . . . . . . . . . . . . . . 2 Reinforcement 9 | . 1 . 2 . . . 1 1 . 2 . . . . . . 2 Assault . | . . . . . . . . . . . . . . . . . . Garrison 3 | . . . . . . . . . . . . . . . . . 3 Intercept . | . . . . . . . . . . . . . . . . . . Searches Triggered . | . . . . . . . . . . . . . . . . . . Construction Impeded . | . . . . . . . . . . . . . . . . . . Haulers Reinforced 3 | . . . . . . . . 1 . . . . . . . . 2 Active Scanning Responses . | . . . . . . . . . . . . . . . . . . Cargo Convoy Interrupts . | . . . . . . . . . . . . . . . . . . Stealth | -11 -10 -10 -9 -9 -9 -8 -8 -7 -6 -6 -5 -4 -4 -4 -4 -3 -3 --------- Run | Jun Mat Min Mat Min Exi Min Mat Fac Fac DSF Fac Fac Upp Upp Zhi Pro Res Distress Signals 14 | . . . 5 . . . 2 1 . . . . . . . . 6 Communications Jammed . | . . . . . . . . . . . . . . . . . . Distress Signals . | . . . . . . . . . . . . . . . . . . Times Spotted 205 | . 15 3 44 10 . 3 10 11 . 8 7 . 9 12 . 13 60 Peak Tracking Total 10 | . 5 3 6 4 . 3 6 7 . 3 3 . 3 4 . 8 10 Tactical Retreats 4 | . 1 . 1 . . . . . . . . . . 1 . . 1 Traps | -11 -10 -10 -9 -9 -9 -8 -8 -7 -6 -6 -5 -4 -4 -4 -4 -3 -3 ------- Run | Jun Mat Min Mat Min Exi Min Mat Fac Fac DSF Fac Fac Upp Upp Zhi Pro Res Traps Triggered 4 | . . . . . . . . . . 1 2 . . . . . 1 Indirectly . | . . . . . . . . . . . . . . . . . . Trap Hack Attempts . | . . . . . . . . . . . . . . . . . . Triggered . | . . . . . . . . . . . . . . . . . . Disarmed . | . . . . . . . . . . . . . . . . . . Reprogrammed . | . . . . . . . . . . . . . . . . . . Reused . | . . . . . . . . . . . . . . . . . . Traps Extracted . | . . . . . . . . . . . . . . . . . . Installed . | . . . . . . . . . . . . . . . . . . Triggered 2 | . . . . . . . . . . . . . . 2 . . . Machines | -11 -10 -10 -9 -9 -9 -8 -8 -7 -6 -6 -5 -4 -4 -4 -4 -3 -3 ---------- Run | Jun Mat Min Mat Min Exi Min Mat Fac Fac DSF Fac Fac Upp Upp Zhi Pro Res Machines Disabled 6 | . . . . . . . . 3 . . 1 . . . . . 2 Max in Single Turn 1 | . . . . . . . . 1 . . 1 . . . . . 1 Garrison Access 2 | . . . . . . . . . . . . . . . . . 2 Machines Repaired . | . . . . . . . . . . . . . . . . . . Machines Sabotaged . | . . . . . . . . . . . . . . . . . . Overloaded Fab Kills . | . . . . . . . . . . . . . . . . . . Hacking | -11 -10 -10 -9 -9 -9 -8 -8 -7 -6 -6 -5 -4 -4 -4 -4 -3 -3 --------- Run | Jun Mat Min Mat Min Exi Min Mat Fac Fac DSF Fac Fac Upp Upp Zhi Pro Res Machines Accessed 26 | . 2 . 2 . 2 . 3 1 2 . . . 1 2 9 . 2 Terminals 10 | . 2 . 2 . . . 3 1 2 . . . . . . . . Fabricators . | . . . . . . . . . . . . . . . . . . Repair Stations . | . . . . . . . . . . . . . . . . . . Recycling Units . | . . . . . . . . . . . . . . . . . . Scanalyzers . | . . . . . . . . . . . . . . . . . . Garrison Access 2 | . . . . . . . . . . . . . . . . . 2 Total Hacks 95 | . 4 . 4 . 10 . 10 3 3 . . . 1 7 48 . 5 Successful 77 | . 4 . 1 . 10 . 2 1 1 . . . 1 7 48 . 2 Failed 18 | . . . 3 . . . 8 2 2 . . . . . . . 3 Catastrophic 2 | . . . 1 . . . 1 . . . . . . . . . . Database Lockouts . | . . . . . . . . . . . . . . . . . . Manual 27 | . 3 . 4 . 1 . 10 3 2 . . . . . . . 4 Terminals 24 | . 4 . 4 . . . 10 3 3 . . . . . . . . Fabricators . | . . . . . . . . . . . . . . . . . . Repair Stations . | . . . . . . . . . . . . . . . . . . Recycling Units . | . . . . . . . . . . . . . . . . . . Scanalyzers . | . . . . . . . . . . . . . . . . . . Garrison Access 5 | . . . . . . . . . . . . . . . . . 5 Terminal Hacks 70 | . 2 . 1 . 10 . . . 1 . . . 1 7 48 . . Record 51 | . . . . . 9 . . . . . . . . 6 36 . . Part Schematic 4 | . . . . . . . . . . . . . . . 4 . . Robot Analysis 4 | . . . . . . . . . . . . . . . 4 . . Prototype ID Bank 4 | . . . . . . . . . . . . . . . 4 . . Open Door 2 | . . . . . . . . . . . . . 1 1 . . . Open DSF 1 | . . . . . . . . . 1 . . . . . . . . Branch Access Points 2 | . 1 . 1 . . . . . . . . . . . . . . Maintenance Status 1 | . 1 . . . . . . . . . . . . . . . . EX-Prototype ID Bank 1 | . . . . . 1 . . . . . . . . . . . . Fabricator Hacks . | . . . . . . . . . . . . . . . . . . Repair Station Hacks . | . . . . . . . . . . . . . . . . . . Recycling Unit Hacks . | . . . . . . . . . . . . . . . . . . Scanalyzer . | . . . . . . . . . . . . . . . . . . Garrison Access Hacks 1 | . . . . . . . . . . . . . . . . . 1 Seal Access 1 | . . . . . . . . . . . . . . . . . 1 Unauthorized Hacks 6 | . 2 . . . . . 2 1 . . . . . . . . 1 Terminals 5 | . 2 . . . . . 2 1 . . . . . . . . . Botnet 5 | . 2 . . . . . 2 1 . . . . . . . . . Fabricators . | . . . . . . . . . . . . . . . . . . Repair Stations . | . . . . . . . . . . . . . . . . . . Recycling Units . | . . . . . . . . . . . . . . . . . . Scanalyzers . | . . . . . . . . . . . . . . . . . . Garrison Access 1 | . . . . . . . . . . . . . . . . . 1 Jam 1 | . . . . . . . . . . . . . . . . . 1 Data Cores Recovered 1 | . . . . . . . . 1 . . . . . . . . . Used . | . . . . . . . . . . . . . . . . . . Hacking Detections 10 | . 2 . 2 . . . 3 1 1 . . . . . . . 1 Full Trace Events 1 | . . . 1 . . . . . . . . . . . . . . Feedback Events . | . . . . . . . . . . . . . . . . . . Feedback Blocked . | . . . . . . . . . . . . . . . . . . Robot Schematics Acquired . | . . . . . . . . . . . . . . . . . . Robots Built . | . . . . . . . . . . . . . . . . . . Authchips . | . . . . . . . . . . . . . . . . . . Time . | . . . . . . . . . . . . . . . . . . Total Robot Build Rating . | . . . . . . . . . . . . . . . . . . Part Schematics Acquired 4 | . . . . . . . . . . . . . . . 4 . . Parts Built . | . . . . . . . . . . . . . . . . . . Authchips . | . . . . . . . . . . . . . . . . . . Time . | . . . . . . . . . . . . . . . . . . Total Part Build Rating . | . . . . . . . . . . . . . . . . . . Parts Repaired . | . . . . . . . . . . . . . . . . . . Time . | . . . . . . . . . . . . . . . . . . Parts Recycled . | . . . . . . . . . . . . . . . . . . Recycled Matter . | . . . . . . . . . . . . . . . . . . Retrieved Matter . | . . . . . . . . . . . . . . . . . . Retrieved Components . | . . . . . . . . . . . . . . . . . . Parts Scanalyzed . | . . . . . . . . . . . . . . . . . . Part Schematics Acquired . | . . . . . . . . . . . . . . . . . . Parts Damaged . | . . . . . . . . . . . . . . . . . . Bothacking | -11 -10 -10 -9 -9 -9 -8 -8 -7 -6 -6 -5 -4 -4 -4 -4 -3 -3 ------------ Run | Jun Mat Min Mat Min Exi Min Mat Fac Fac DSF Fac Fac Upp Upp Zhi Pro Res Used RIF Installer . | . . . . . . . . . . . . . . . . . . Robots Hacked . | . . . . . . . . . . . . . . . . . . Non-combat . | . . . . . . . . . . . . . . . . . . Combat . | . . . . . . . . . . . . . . . . . . Robot Hacks Applied . | . . . . . . . . . . . . . . . . . . Relay Couplers Released 1 | . . . . . . . . . . . . . . . . . 1 Machine Destruction 1 | . . . . . . . . . . . . . . . . . 1 Fabnet Peak Effective % . | . . . . . . . . . . . . . . . . . . Robots Rewired 2 | . . . . . . . . 2 . . . . . . . . . Allies Hacked . | . . . . . . . . . . . . . . . . . . Hacks Repelled . | . . . . . . . . . . . . . . . . . . Allies | -11 -10 -10 -9 -9 -9 -8 -8 -7 -6 -6 -5 -4 -4 -4 -4 -3 -3 -------- Run | Jun Mat Min Mat Min Exi Min Mat Fac Fac DSF Fac Fac Upp Upp Zhi Pro Res Total Allies 7 | . . . . 2 . . . 2 . . . . . 3 . . . Largest Group 3 | . . . . 2 1 . . 2 2 2 1 . . 3 . . . Highest-Rated Group 138 | . . . . 42 11 . . 48 48 48 32 . . 138 . . . Highest-Rated Ally 46 | . . . . 31 11 . . 32 32 32 32 . . 46 . . . Total Orders 3 | . . . . . . . . 3 . . . . . . . . . EXPLORE 3 | . . . . . . . . 3 . . . . . . . . . Ally Attacks 82 | . . . . 12 . . . 20 . 8 . . . 42 . . . Total Damage 1516 | . . . . 146 . . . 311 . 134 . . . 925 . . . Kills 14 | . . . . 4 . . . 5 . . . . . 5 . . . Allies Corrupted . | . . . . . . . . . . . . . . . . . . Allies Melted . | . . . . . . . . . . . . . . . . . . Intel | -11 -10 -10 -9 -9 -9 -8 -8 -7 -6 -6 -5 -4 -4 -4 -4 -3 -3 ------- Run | Jun Mat Min Mat Min Exi Min Mat Fac Fac DSF Fac Fac Upp Upp Zhi Pro Res Robot Analysis Total 4 | . . . . . . . . . . . . . . . 4 . . Derelict Logs Recovered 7 | . . 1 . 3 . . . . . . . . 2 1 . . . Drone Launches 3 | . . . . . . . . 3 . . . . . . . . . Drone Recoveries 2 | . . . . . . . . 2 . . . . . . . . . Decoded 0b10 Intel 43 | . . . . . . . . . . . . . . . . . 43 Traps 8 | . . . . . . . . . . . . . . . . . 8 Emergency Access 7 | . . . . . . . . . . . . . . . . . 7 Items 28 | . . . . . . . . . . . . . . . . . 28 Exploration | -11 -10 -10 -9 -9 -9 -8 -8 -7 -6 -6 -5 -4 -4 -4 -4 -3 -3 ------------- Run | Jun Mat Min Mat Min Exi Min Mat Fac Fac DSF Fac Fac Upp Upp Zhi Pro Res Turns Passed 8520 | 81 378 175 1168 710 286 142 329 435 272 201 516 103 583 452 303 693 1693 Spaces Moved 5765 | 58 262 134 680 553 233 107 257 300 214 140 382 81 441 327 231 491 874 Core 7 | 5 . . . . . . . . . . . . . . . . 2 Treads 213 | . . . . . . . . . . . . . . . . . 213 Legs 5545 | 53 262 134 680 553 233 107 257 300 214 140 382 81 441 327 231 491 659 Wheels . | . . . . . . . . . . . . . . . . . . Hover . | . . . . . . . . . . . . . . . . . . Flight . | . . . . . . . . . . . . . . . . . . Fastest Speed 50 | 50 120 120 120 120 120 120 120 120 122 122 122 122 122 120 120 120 120 Average Speed 122 | 113 120 120 120 120 120 120 120 121 122 122 122 122 122 121 120 120 131 Slowest Speed 260 | 120 120 120 120 120 120 120 120 122 122 122 122 122 122 122 120 120 260 Overloaded Moves . | . . . . . . . . . . . . . . . . . . Propulsion Burnouts . | . . . . . . . . . . . . . . . . . . Robots Hopped . | . . . . . . . . . . . . . . . . . . Cave-ins Triggered . | . . . . . . . . . . . . . . . . . . Teleports 1 | . . . . . . . . . . . . . . . 1 . . Exploration Rate (%) 43 | 5 62 49 62 93 61 45 27 28 5 93 10 2 56 46 62 65 20 Regions Visited 17 Branch Regions 8 Pre-discovered Areas 10 | . . 1 . 1 . . . . . . . . 3 2 3 . . Known Exits Taken 9 | . 1 . 1 . . . 1 . 1 . . 1 1 1 1 1 . Unknown Exits Taken 7 | 1 . 1 . 1 1 1 . 1 . . 1 . . . . . . Scrap Searched 10 | . . 2 . 1 . . . . . . . . 2 2 . 3 . Spaces Dug 2 | . . . . . . . . . . . . . . . . . 2 Terrain Destroyed 89 | . . 16 22 . . . 15 4 . . . . . . . 6 26 Melee . | . . . . . . . . . . . . . . . . . . Projectile 48 | . . . . . . . 15 4 . . . . . . . 6 23 AOE 38 | . . 16 22 . . . . . . . . . . . . . . Terrain Rammed . | . . . . . . . . . . . . . . . . . . Walls Destroyed . | . . . . . . . . . . . . . . . . . . Machines Disabled . | . . . . . . . . . . . . . . . . . . Actions | -11 -10 -10 -9 -9 -9 -8 -8 -7 -6 -6 -5 -4 -4 -4 -4 -3 -3 --------- Run | Jun Mat Min Mat Min Exi Min Mat Fac Fac DSF Fac Fac Upp Upp Zhi Pro Res Total 6679 | 71 293 144 888 577 243 112 278 369 225 179 426 84 475 371 260 552 1132 Wait 160 | . 7 1 73 12 . . 1 21 4 2 2 . 3 6 . 8 20 Move 5748 | 57 261 133 679 552 232 106 256 299 213 139 381 80 440 326 230 490 874 Hop . | . . . . . . . . . . . . . . . . . . Pick Up 73 | 8 4 1 10 . 3 . 3 . 2 6 3 1 5 2 5 4 16 Fast Attach 76 | 4 1 1 6 . . . . 2 . 1 14 . 2 1 6 2 36 Attach 49 | 2 . . 5 1 1 1 1 2 2 . 1 2 . . 2 4 25 Detach 4 | . . . 2 . . . . . . . 1 . . . 1 . . Swap 48 | . . 3 15 1 . 1 . 3 2 3 1 1 2 5 2 3 6 Drop 76 | . 2 2 13 . 7 . 2 2 2 10 10 . 2 5 10 2 7 Fire 422 | . 18 3 85 11 . 4 15 23 . 17 12 . 21 26 4 39 144 Melee . | . . . . . . . . . . . . . . . . . . Ram . | . . . . . . . . . . . . . . . . . . Kick 4 | . . . . . . . . . . . 1 . . . . . 3 Crush 1 | . . . . . . . . . . . . . . . . . 1 Escape Stasis 1 | . . . . . . . . . . 1 . . . . . . . Rewire 17 | . . . . . . . . 17 . . . . . . . . . Trap . | . . . . . . . . . . . . . . . . . . Miscellaneous . | . . . . . . . . . . . . . . . . . . Route ------- -11/Junkyard -10/Materials (discovered 3 exits: *Mat / *Min x2) -10/Mines -9/Materials (discovered 3 exits: *Mat x2 / *Min) -9/Mines (discovered 4 exits: *Mat x2 / *Exi / [*Zio]) -9/Exiles -8/Mines -8/Materials (discovered 2 exits: *Fac x2) -7/Factory (discovered 2 exits: *Fac / [*Low]) -6/Factory (discovered 2 exits: [*Low] / DSF) -6/DSF -5/Factory -4/Factory -4/Upper Caves -4/Upper Caves (discovered 2 exits: *Res / *Zhi) -4/Zhirov -3/Proximity Caves -3/Research (discovered 2 exits: Res / Arm) History --------- Turn | Location | Event 30 | -11/Junkyard | Discovered new exit (range 15) 82 | -11/Junkyard | Entered Materials 178 | -10/Materials | Identified exit to Mines 206 | -10/Materials | Discovered new exit (range 11) 305 | -10/Materials | Build established: Mutant 460 | -10/Materials | Entered Mines 511 | -10/Mines | A weapon hastily lodged in a ceiling crevice suddenly fell to the ground 534 | -10/Mines | Discovered new exit (range 14) 536 | -10/Mines | Learned location of Zion (-7) 635 | -10/Mines | Entered Materials 635 | -9/Materials | Evolved 2 slots: Propulsion x2 1332 | -9/Materials | Discovered new exit (range 16) 1535 | -9/Materials | Discovered new exit (range 16) 1741 | -9/Materials | Identified exit to Mines 1803 | -9/Materials | Entered Mines 1891 | -9/Mines | Learned location of 1 exit from Materials 1955 | -9/Mines | Learned Materials security intel 1985 | -9/Mines | A Derelict revealed a hidden shortcut to a safe place 2165 | -9/Mines | Discovered new exit (range 5) 2316 | -9/Mines | Discovered new exit (range 14) 2495 | -9/Mines | Deemed a non-threat by the Exiles lab entrance 2495 | -9/Mines | Discovered new exit (range 5) 2513 | -9/Mines | Entered Exiles 2513 | -9/Exiles | Accompanied by 1 ally 2543 | -9/Exiles | Met 8R-AWN 2560 | -9/Exiles | Met EX-HEX 2600 | -9/Exiles | Met EX-BIN 2625 | -9/Exiles | Aligned with FarCom system 2626 | -9/Exiles | Given EX-Vault access code 2655 | -9/Exiles | Opened EX-Vault 2676 | -9/Exiles | Found XL Autogun Array 2681 | -9/Exiles | Found AWS/Gauss 2683 | -9/Exiles | Found Supersonic Drone Bay 2709 | -9/Exiles | Warned to stay clear of 0b10 Research branches 2712 | -9/Exiles | Exiles lab attacked by MAIN.C 2787 | -9/Exiles | Discovered new exit (range 10) 2799 | -9/Exiles | Stole three prototypes: Supersonic Drone Bay, AWS/Gauss, XL Autogun Array 2799 | -9/Exiles | Entered Mines 2928 | -8/Mines | Discovered new exit (range 15) 2941 | -8/Mines | Entered Materials 2941 | -8/Materials | Evolved 2 slots: Weapon x2 2942 | -8/Materials | Identified exit to Factory 3246 | -8/Materials | Discovered exit to Factory (range 16) 3250 | -8/Materials | Build established: Skirmisher 3270 | -8/Materials | Entered Factory 3270 | -7/Factory | Evolved 2 slots: Utility x2 3272 | -7/Factory | FarCom data flow suspended 3534 | -7/Factory | Discovered new exit (range 84) 3581 | -7/Factory | Build established: Gunner 3684 | -7/Factory | Discovered new exit (range 14) 3705 | -7/Factory | Entered another Factory area 3705 | -6/Factory | Accompanied by 2 allies 3705 | -6/Factory | Evolved 2 slots: Propulsion x1, Utility x1 3856 | -6/Factory | Discovered new exit (range 5) 3938 | -6/Factory | Identified exit to DSF 3977 | -6/Factory | Entered DSF 3977 | -6/DSF | Accompanied by 2 allies 4047 | -6/DSF | Additional patrols routed to DSF 4116 | -6/DSF | Discovered new exit (range 15) 4142 | -6/DSF | Sterilization system engaged 4162 | -6/DSF | Ambient heat levels rising (+10) 4177 | -6/DSF | Ambient heat levels rising (+10) 4178 | -6/DSF | Entered Factory 4178 | -5/Factory | Accompanied by 1 ally 4178 | -5/Factory | Evolved 2 slots: Power x1, Utility x1 4675 | -5/Factory | Discovered new exit (range 15) 4694 | -5/Factory | Entered another Factory area 4694 | -4/Factory | Evolved 2 slots: Utility x2 4730 | -4/Factory | Discovered new exit (range 9) 4796 | -4/Factory | Identified exit to Upper Caves 4797 | -4/Factory | Entered Upper Caves 4797 | -4/Upper Caves | Spotted PZ-BY1(f) 4797 | -4/Upper Caves | Spotted IW-TMM(f) 4797 | -4/Upper Caves | Destroyed PZ-BY1(f) 4798 | -4/Upper Caves | Encountered a Master Thief 4798 | -4/Upper Caves | AWS/Gauss stolen by Master Thief 4799 | -4/Upper Caves | Spotted 31-AL3(f) 4800 | -4/Upper Caves | Encountered a Master Thief 4802 | -4/Upper Caves | Destroyed IW-TMM(f) 4803 | -4/Upper Caves | Railgun stolen by Master Thief 4812 | -4/Upper Caves | Met a Warlord Commander 4816 | -4/Upper Caves | Found Encrypted Comm Array 5173 | -4/Upper Caves | Attracted the attention of an 0b10 checkpoint 5290 | -4/Upper Caves | Learned location of Quarantine (-2) 5363 | -4/Upper Caves | Discovered new exit (range 10) 5379 | -4/Upper Caves | Identified exit to Upper Caves 5380 | -4/Upper Caves | Entered another Upper Caves area 5389 | -4/Upper Caves | Learned Research terminal intel 5398 | -4/Upper Caves | Discovered new exit (range 7) 5405 | -4/Upper Caves | Identified exit to Research 5577 | -4/Upper Caves | A Commander dispatched an escort 5589 | -4/Upper Caves | Learned 8 Factory zone layouts 5589 | -4/Upper Caves | Learned 8 Research zone layouts 5589 | -4/Upper Caves | Learned Armory trap positions 5656 | -4/Upper Caves | Build established: Scavenger-Gunner 5771 | -4/Upper Caves | Spotted GK-M0P(f) 5772 | -4/Upper Caves | Spotted TK-9XJ(f) 5772 | -4/Upper Caves | Spotted NS-7XT(f) 5773 | -4/Upper Caves | Encountered a Master Thief 5773 | -4/Upper Caves | Encountered a Master Thief 5773 | -4/Upper Caves | Encountered a Master Thief 5773 | -4/Upper Caves | Spotted B6-7Q6(f) 5774 | -4/Upper Caves | Encountered a Master Thief 5774 | -4/Upper Caves | AWS/Gauss stolen by Master Thief 5775 | -4/Upper Caves | Myomer Leg stolen by Master Thief 5778 | -4/Upper Caves | Allies destroyed GK-M0P(f) 5778 | -4/Upper Caves | Myomer Leg stolen by Master Thief 5780 | -4/Upper Caves | Imp. Kinecellerator stolen by Master Thief 5781 | -4/Upper Caves | Destroyed NS-7XT(f) 5816 | -4/Upper Caves | Discovered new exit (range 11) 5827 | -4/Upper Caves | Identified exit to Zhirov 5832 | -4/Upper Caves | Entered Zhirov 5832 | -4/Zhirov | Accompanied by 2 allies 5832 | -4/Zhirov | Discovered new exit (range 3) 5833 | -4/Zhirov | Commander's escort returned to base 5833 | -4/Zhirov | Commander's escort returned to base 5854 | -4/Zhirov | Met Zhirov 5877 | -4/Zhirov | Learned location of Testing (-3) 5877 | -4/Zhirov | Learned location of Command (-1) 5902 | -4/Zhirov | Zhirov requested help retrieving the SGEMP Prototype 5921 | -4/Zhirov | Found Alien Artifact 5922 | -4/Zhirov | Identified Transdimensional Reconstructor 5922 | -4/Zhirov | Warped through subspace 5977 | -4/Zhirov | Found Alien Artifact 5977 | -4/Zhirov | Identified Integrated Dissipator 5977 | -4/Zhirov | Installed Integrated Dissipator, increased core heat dissipation (+20) 6133 | -4/Zhirov | Identified exit to Proximity Caves 6135 | -4/Zhirov | Entered Proximity Caves 6278 | -3/Proximity Caves | Build established: Gunner 6749 | -3/Proximity Caves | Destroyed 8 combat bots 6755 | -3/Proximity Caves | Lost 7 parts (1n6w) 6810 | -3/Proximity Caves | Discovered exit to Research (range 17) 6828 | -3/Proximity Caves | Entered Research 6828 | -3/Research | Evolved 2 slots: Utility x2 6829 | -3/Research | Identified exit to Armory 6829 | -3/Research | Identified exit to Research 6830 | -3/Research | Loaded intel: 24 terminal locations 6989 | -3/Research | Build established: Mutant 7386 | -3/Research | Lost 3 parts (1n2u) 7555 | -3/Research | Lost 10 parts (2p4n1u3w) 7635 | -3/Research | Found Unknown Launcher 7635 | -3/Research | Identified Gamma Bomb Array 7646 | -3/Research | Lost 3 parts (3n) 7659 | -3/Research | System corruption reached 10% 7757 | -3/Research | Core integrity fell below 50% 7781 | -3/Research | Lost 3 parts (1n1u1w) 7795 | -3/Research | Build established: Scavenger-Mutant 7913 | -3/Research | Lost 6 parts (1p2n2u1w) 8171 | -3/Research | Build established: Scavenger-Gunner 8353 | -3/Research | Lost 9 parts (2p3n1u3w) 8381 | -3/Research | Spotted B-86 Titan 8490 | -3/Research | Lost 3 parts (1p1n1u) 8500 | -3/Research | Core integrity fell below 20% 8521 | -3/Research | Destroyed by G-67 Veteran with Plasma Rifle Last Messages --------------- 08507_ System corrupted: Hvy. Laser failed to cycle. 08507_ B-86 Titan suffers critical hit (Burn). 08508_ System corrupted: Component data lost. 08508_ Hvy. Laser destroyed. 08508_ Knocked back. 08508_ Penetrated by Slug. 08508_ Slug penetrates A-15 Conveyor. 08510_ System corrupted: Plasma Rifle failed to cycle. 08511_ Critical hit (Burn: +37). 08511_ Flexi-carbon Leg destroyed. 08511_ Knocked back. 08512_ Acquired 5 matter. 08515_ Plasma Rifle destroyed. 08517_ Hvy. Machine Gun destroyed. 08518_ Field Laser destroyed. 08518_ Adv. Targeting Computer destroyed. 08518_ Critical hit (Blast). 08519_ Acquired 5 matter. 08520_ B-86 Titan exits siege mode. [Achievement: This Is Interesting...] Map ----- +----------------------------------------------------+ | ?????????????????????????????????????????????????? | | ?????????????????????????????????????????????????? | | ?????????????????????????????????????????????????? | | ??????????##########?????????????????????????????? | | ??????????# #?????????????????????????????? | | ??!???????# #?????????????????????????????? | | ??????????# #?????????????????????????????? | | ?????!????# % #?????????????????????????????? | | ??????!???# ######????????????????????????? | | ??????????# + #????????????????????????? | | ??????????# % #### #????????????????????????? | | ??????????# ! #??# #????????????????????????? | | ??????????# %% %#?##+########?????????????????? | | ############/#######?# * #?????????????????? | | k ???#! #?????????????????? | | % ??# """ #?????????????????? | | ?# """" #?????????????????? | | """ """ # """" #?????????????????? | | """ """ p # """ #?????????????????? | | """ """ p% # #?????????????????? | | u # #?????????????????? | | ! " " u ###+######################### | | "Y" p Ru %% g% A % %k k | | "" k % % % | | [[= BB %!!/!! g%% % | | [[= BB @ k k % % %%% | | [=] A ##########+######+###### # | | ####"" """# #########?????????? ???#% % ## # | | #??#""F"""# #??????????????]???? ?# [ ## # | | #??# """""####?##????????????????? ##[ * ## # | | #??##########??# ?????????????????? ## % ! ## # | | #????????#""#??# ???????????????????##=! ## # | | ##########T"#### ????????????????????# ! ## # | | # ????????????????????# ## # | | # ????????????????????# ## # | | # ????????????????????# ## # | | # ????????????????????# ## | | +########## # ????????????????????# / | | ????????????????? #????????????# ## | | ?????????????????#+########################## | | ????????????????? # #??????###### | | ????????????????? # #???????????? | | ????????????????? # #???????????? | | ????????????????? # #???????????? | | ?????????????????# # #???????????? | | ?????????????????# # #???????????? | | ?????""??????????# #####+##########???????????? | | ?????"""?????????# #????????????? | | ??????T"?????????# #????????????? | | ?????"""?????????# #????????????? | +----------------------------------------------------+ Best States ------------- Heat Dissipation 134 Energy Generation 41 Energy Capacity 580 Matter Stores 300 Matter Capacity 300 Sight Range 20 Terrain Scan Density 10 Armor Coverage 375 Propulsion Shielding 66 Evasion (%) 55 Targeting Accuracy 32 Recoil Reduction 6 Kinecelleration 40 Item Schematics ----------------- Assault Drone Bay | -4/Zhirov | Free Exp. Heat Sink | -4/Zhirov | Free Exp. Optical Array | -4/Zhirov | Free Imp. Arc Thrower | -4/Zhirov | Free Robot Schematics ------------------ None Fabricated ------------ Nothing Alien Tech Used ----------------- Transdimensional Reconstructor Integrated Dissipator Achievements -------------- Alien Tech Armchair Analyst Subspace Traveler The Science Guy This Is Interesting... Challenges ------------ None Game ------ Seed ThermicArmageddonFlail Manual? 0 Play Time 01:14:55 Cumulative 32.5 hours Start 2023.04.01 @ 20:36:55 End 2023.04.01 @ 21:50:21 Sessions 2 Manual Loads 0 Difficulty Rogue Special Mode None Game No. 52 Rogue 36 Adventurer 16 Explorer 0 Win Type - Total 1 Types 1/0/0/0/0/0/0/0/0 Lore% 27 Gallery% 40 Achievement% 38 Wizard Run 0 Options --------- ASCII 0 Keyboard 0 Movement Mouse Keybinds 0 Fullscreen 1 Font 18/SmallcapsGlow Map View 76x50 Tactical HUD 1 Map Filters NONE Filters NONE Steam 1 RUN: 878079b8-6d95-4e62-b6fa-18d02357f709